bitfinex/quotes_BTCUSD_20240906
["timestamp","ask_amount","ask_price","bid_price","bid_amount"]
[1725627909756,0.1,56839.0,56838.0,0.175937]
[1725627909986,0.02757525,56838.0,56837.0,0.351883]
[1725627910211,0.02757525,56838.0,56837.0,0.879707]
[1725627910677,0.02757525,56838.0,56837.0,1.073507]
[1725627910887,0.02757525,56838.0,56837.0,1.230407]
[1725627911321,0.02757525,56838.0,56837.0,1.242407]
[1725627911534,0.001816,56839.0,56838.0,0.879692]
[1725627911753,0.001816,56839.0,56838.0,1.40707996]
[1725627912489,0.001816,56839.0,56838.0,2.14435696]
[1725627912706,0.000816,56839.0,56838.0,2.14635696]
[1725627913618,0.001816,56839.0,56838.0,2.15235696]
[1725627913844,0.001816,56839.0,56838.0,1.81447996]
[1725627914066,0.001816,56839.0,56838.0,1.80847996]
[1725627914320,0.002816,56839.0,56838.0,2.16835696]
[1725627914579,0.002816,56839.0,56838.0,2.50623396]
[1725627914796,0.52650515,56867.0,56863.0,0.175861]
[1725627915026,0.52650515,56867.0,56863.0,0.527583]
[1725627915259,0.351678,56871.0,56863.0,0.527583]
[1725627915504,0.175842,56870.0,56863.0,0.527583]
[1725627915719,0.02838007,56864.0,56863.0,0.879305]
[1725627916174,0.02838007,56864.0,56863.0,0.527583]
[1725627916391,0.02938007,56864.0,56863.0,0.535583]
[1725627916854,0.02938007,56864.0,56863.0,0.527583]
[1725627917083,0.03038007,56864.0,56863.0,0.541583]
[1725627917315,0.03038007,56864.0,56863.0,0.014]
[1725627917529,0.03038007,56864.0,56863.0,0.008]
[1725627917788,0.03038007,56864.0,56863.0,0.197861]
[1725627918277,0.03038007,56864.0,56863.0,0.549583]
[1725627918526,0.03038007,56864.0,56863.0,0.901305]
[1725627919148,0.03038007,56864.0,56863.0,1.259705]
[1725627919368,0.03038007,56864.0,56863.0,1.78693796]
[1725627919806,0.03038007,56864.0,56863.0,1.79885578]
[1725627920246,0.02838007,56864.0,56863.0,0.18471782]
[1725627920448,0.20423807,56864.0,56863.0,0.17071782]
[1725627920628,0.02838007,56864.0,56863.0,0.03691782]
[1725627920770,0.20423807,56864.0,56863.0,0.03691782]
[1725627921010,0.02838007,56864.0,56863.0,0.91622282]
[1725627921223,0.02838007,56864.0,56863.0,0.90222282]
[1725627921454,0.02838007,56864.0,56863.0,1.25694482]
[1725627922709,0.02838007,56864.0,56863.0,2.13547778]
[1725627922992,0.02838007,56864.0,56863.0,1.60824482]
[1725627923241,0.02838007,56864.0,56863.0,1.59424482]
[1725627923487,0.02838007,56864.0,56863.0,1.78375578]
[1725627923714,0.02838007,56864.0,56863.0,1.79675578]
[1725627923937,0.02838007,56864.0,56863.0,2.81572789]
[1725627924152,0.000816,56864.0,56863.0,2.84264981]
[1725627924364,0.000816,56864.0,56863.0,2.48892781]
[1725627924579,0.000816,56864.0,56863.0,2.84064981]
[1725627924778,0.000816,56864.0,56863.0,2.50492781]
[1725627925016,0.000817,56878.0,56877.0,1.390722]
[1725627925237,0.000817,56878.0,56877.0,1.77623296]
[1725627925493,0.000817,56878.0,56877.0,2.13952978]
[1725627925706,0.000817,56878.0,56877.0,1.78789478]
[1725627926162,0.52044483,56893.0,56891.0,0.175771]
[1725627926406,0.52044483,56893.0,56891.0,0.175773]
[1725627926641,0.52044483,56893.0,56877.0,0.89880778]
[1725627926642,0.00082,56896.0,56895.0,0.175762]
[1725627927107,0.00082,56896.0,56895.0,1.40584496]
[1725627928800,0.00082,56896.0,56895.0,1.60904496]
[1725627929033,0.00082,56896.0,56895.0,1.25752096]
[1725627929474,0.00082,56896.0,56895.0,1.27152096]
[1725627929698,0.00082,56896.0,56895.0,1.25752096]
[1725627929920,0.00082,56896.0,56895.0,1.27152096]
[1725627930399,0.00082,56896.0,56895.0,1.28552096]
[1725627930629,0.41,56900.0,56895.0,1.28552096]
[1725627930630,0.0850539,56900.0,56899.0,0.87875]
[1725627930864,0.0850539,56900.0,56899.0,1.05426096]
[1725627932020,0.0850539,56900.0,56899.0,1.06826096]
[1725627932476,0.0850539,56900.0,56899.0,1.08026096]
[1725627933157,0.0850539,56900.0,56899.0,0.55325]
[1725627933429,0.0850539,56900.0,56899.0,0.20175]
[1725627934133,0.2896539,56900.0,56899.0,0.026]
[1725627934357,0.9739929,56900.0,56899.0,0.026]
[1725627934586,1.6769789,56900.0,56899.0,0.026]
[1725627935312,0.175764,56895.0,56891.0,0.175774]
[1725627935544,0.175766,56894.0,56890.0,0.175777]
[1725627936006,0.175762,56895.0,56891.0,0.175773]
[1725627936247,0.175762,56895.0,56890.0,0.351553]
[1725627936503,0.175754,56898.0,56894.0,0.175764]
[1725627936734,0.175754,56898.0,56895.0,0.00163]
[1725627937201,0.0858689,56900.0,56899.0,0.011]
[1725627937424,0.2616149,56900.0,56899.0,0.011]
[1725627937643,0.6131079,56900.0,56895.0,0.177391]
[1725627937849,0.4373619,56900.0,56895.0,0.00163]
[1725627938084,0.0858689,56900.0,56895.0,0.01463]
[1725627938303,0.351482,56902.0,56897.0,0.175754]
[1725627938540,0.1,56908.0,56898.0,0.17551096]
[1725627938814,0.351424,56912.0,56899.0,0.00351426]
[1725627939051,0.00082,56913.0,56908.0,0.175722]
[1725627939289,0.351424,56912.0,56904.0,0.351464]
[1725627939508,0.00082,56913.0,56908.0,0.175722]
[1725627939745,0.176527,56913.0,56908.0,0.175722]
[1725627939957,0.00082,56913.0,56908.0,0.86499102]
[1725627940186,0.00082,56913.0,56908.0,1.75897902]
[1725627940401,0.02836271,56909.0,56908.0,2.09247974]
[1725627940821,0.02836271,56909.0,56908.0,2.09847974]
[1725627941073,0.02836271,56909.0,56908.0,1.79797902]
[1725627941314,0.02836271,56909.0,56908.0,1.79197902]
[1725627941555,0.2005,56924.0,56914.0,0.175703]
[1725627941788,0.2005,56924.0,56912.0,0.351419]
[1725627942008,0.17569,56919.0,56912.0,0.351419]
[1725627942239,0.351377,56919.0,56908.0,0.53941096]
[1725627942476,0.175689,56919.0,56914.0,0.175702]
[1725627943135,0.175689,56919.0,56915.0,0.1757]
[1725627943379,0.351357,56923.0,56913.0,0.351409]
[1725627943635,0.275679,56922.0,56918.0,0.17569]
[1725627943869,0.275679,56922.0,56916.0,0.351394]
[1725627943870,0.275679,56922.0,56917.0,0.175694]
[1725627944082,0.1,56922.0,56919.0,0.175687]
[1725627944336,0.1,56922.0,56920.0,0.175684]
[1725627944583,0.1,56922.0,56921.0,0.527046]
[1725627944829,0.3039,56928.0,56922.0,0.175677]
[1725627945041,0.3039,56928.0,56923.0,0.175674]
[1725627945042,0.175665,56927.0,56923.0,0.175674]
[1725627945281,0.1,56926.0,56923.0,0.175674]
[1725627945719,0.275667,56926.0,56922.0,0.175678]
[1725627946158,0.095,56926.0,56922.0,0.00451325]
[1725627946435,0.2039,56928.0,56924.0,0.175672]
[1725627946652,0.2039,56928.0,56925.0,0.175668]
[1725627946888,0.2039,56928.0,56924.0,0.175671]
[1725627946889,0.02753742,56926.0,56924.0,0.175671]
[1725627947141,0.02753742,56926.0,56923.0,0.003]
[1725627947142,0.02753742,56926.0,56925.0,1.028847]
[1725627948100,0.000816,56930.0,56925.0,0.501839]
[1725627948319,0.000816,56930.0,56925.0,0.1505]
[1725627948545,0.000816,56930.0,56929.0,0.175657]
[1725627948826,0.000816,56930.0,56929.0,0.878285]
[1725627949974,0.000816,56930.0,56929.0,0.175657]
[1725627950458,0.000816,56930.0,56929.0,0.017]
[1725627950685,0.000816,56930.0,56929.0,0.186657]
[1725627950906,0.000816,56930.0,56929.0,0.011]
[1725627951372,0.000816,56930.0,56929.0,0.200657]
[1725627951605,0.000816,56930.0,56929.0,0.025]
[1725627952767,0.000816,56930.0,56929.0,0.200657]
[1725627952986,0.000816,56930.0,56929.0,0.025]
[1725627953207,0.000816,56930.0,56929.0,0.186657]
[1725627953431,0.000816,56930.0,56929.0,0.200657]
[1725627954141,0.000816,56930.0,56929.0,0.90679761]
[1725627954581,0.000816,56930.0,56929.0,1.60921161]
[1725627954825,0.000816,56930.0,56929.0,1.59521161]
[1725627955055,0.04673971,56930.0,56929.0,2.14503657]
[1725627955334,0.04673971,56930.0,56929.0,2.16903657]
[1725627955562,0.04673971,56930.0,56929.0,2.15803657]
[1725627955803,0.04673971,56930.0,56929.0,2.17203657]
[1725627956022,0.04673971,56930.0,56929.0,0.028]
[1725627956273,0.04673971,56930.0,56929.0,0.014]
[1725627956488,0.04673971,56930.0,56929.0,0.028]
[1725627957155,0.04673971,56930.0,56929.0,0.892285]
[1725627957377,0.04673971,56930.0,56929.0,0.540971]
[1725627957820,0.04673971,56930.0,56929.0,0.878285]
[1725627958273,0.04673971,56930.0,56929.0,0.540971]
[1725627958513,0.04673971,56930.0,56929.0,0.741471]
[1725627958723,0.04673971,56930.0,56929.0,1.092785]
[1725627958946,0.04673971,56930.0,56929.0,0.014]
[1725627959419,0.04673971,56930.0,56929.0,0.025]
[1725627959660,0.04673971,56930.0,56929.0,0.014]
[1725627959884,0.04673971,56930.0,56929.0,0.189657]
[1725627960113,0.23833971,56930.0,56929.0,0.028]
[1725627960351,1.48620447,56930.0,56929.0,0.028]
[1725627960653,1.86841843,56930.0,56929.0,0.014]
[1725627961096,1.86841843,56930.0,56929.0,0.028]
[1725627961344,1.86841843,56930.0,56929.0,0.014]
[1725627961581,0.351372,56920.0,56910.0,0.514328]
[1725627961812,0.52706,56920.0,56915.0,0.1757]
[1725627962053,0.351359,56922.0,56916.0,0.175696]
[1725627962278,0.351324,56928.0,56916.0,0.35490356]
[1725627962500,0.02753536,56919.0,56917.0,0.351388]
[1725627962743,0.351355,56923.0,56916.0,0.00351356]
[1725627962959,0.175694,56918.0,56914.0,0.175702]
[1725627963645,0.175694,56918.0,56915.0,0.1757]
[1725627963864,0.175694,56918.0,56917.0,0.014]
[1725627964089,0.02753501,56919.0,56917.0,0.014]
[1725627964329,0.02753501,56919.0,56910.0,0.33841096]
[1725627964330,0.22113501,56919.0,56914.0,0.014]
[1725627964580,0.175701,56915.0,56914.0,0.028]
[1725627964811,1.08226259,56915.0,56914.0,0.028]
[1725627965035,1.08226259,56915.0,56896.0,0.1638]
[1725627965036,0.175727,56907.0,56896.0,0.1638]
[1725627965303,0.30050072,56906.0,56899.0,0.175748]
[1725627965531,0.30050072,56902.0,56895.0,0.00163]
[1725627965759,0.351488,56901.0,56895.0,0.00163]
[1725627965998,0.527277,56896.0,56895.0,0.00163]
[1725627966235,1.52889572,56896.0,56895.0,0.00163]
[1725627966490,1.98041372,56896.0,56895.0,0.00163]
[1725627966722,2.33193172,56896.0,56895.0,0.00163]
[1725627966996,0.30050072,56874.0,56872.0,0.52650515]
[1725627967454,1.17963572,56874.0,56873.0,0.01173495]
[1725627967832,1.98418338,56874.0,56873.0,0.01173495]
[1725627968051,1.98418338,56874.0,56857.0,0.00164]
[1725627968052,1.427906,56864.0,56857.0,0.00164]
[1725627968322,2.08212272,56864.0,56857.0,0.00164]
[1725627968565,1.82840672,56864.0,56857.0,0.00164]
[1725627968793,1.86081622,56864.0,56857.0,0.00164]
[1725627969254,2.01871622,56864.0,56857.0,0.00164]
[1725627969478,2.19427648,56864.0,56857.0,0.00164]
[1725627969707,2.38043222,56864.0,56857.0,0.00164]
[1725627969957,2.38243222,56864.0,56857.0,0.00164]
[1725627970210,1.66700022,56864.0,56857.0,0.00164]
[1725627970459,1.6854003,56864.0,56863.0,0.00262]
[1725627970939,1.66700022,56864.0,56863.0,0.00162]
[1725627971186,0.3092675,56864.0,56863.0,0.00362]
[1725627971423,0.001,56864.0,56863.0,0.00262]
[1725627971678,0.351686,56869.0,56863.0,0.00162]
[1725627971922,0.175852,56866.0,56863.0,0.00162]
[1725627972164,0.35167,56872.0,56863.0,0.00162]
[1725627972406,0.17585,56867.0,56864.0,0.01189953]
[1725627972891,0.30050072,56868.0,56863.0,0.00162]
[1725627973125,0.527574,56864.0,56863.0,0.00162]
[1725627973592,1.17979072,56864.0,56863.0,0.00162]
[1725627973594,1.72970672,56864.0,56863.0,0.00162]
[1725627973839,1.72970672,56864.0,56863.0,0.00462]
[1725627973840,2.33992272,56864.0,56863.0,0.00462]
[1725627974085,2.32992272,56864.0,56863.0,0.00462]
[1725627974321,1.97820672,56864.0,56863.0,0.00162]
[1725627974562,2.15376698,56864.0,56863.0,0.00162]
[1725627975032,2.50748298,56864.0,56863.0,0.00162]
[1725627975262,2.15376698,56864.0,56863.0,0.00162]
[1725627975508,1.97820672,56864.0,56863.0,0.00162]
[1725627976227,2.12427428,56864.0,56863.0,0.00162]
[1725627976711,2.12427428,56864.0,56863.0,0.00262]
[1725627976953,2.56511346,56864.0,56863.0,0.00162]
[1725627977179,2.58811346,56864.0,56863.0,0.00162]
[1725627977431,2.76367372,56864.0,56863.0,0.00162]
[1725627977652,2.66255054,56864.0,56863.0,0.00162]
[1725627977889,2.67355054,56864.0,56863.0,0.00262]
[1725627978143,2.67355054,56864.0,56863.0,0.00162]
[1725627978144,2.66455054,56864.0,56863.0,0.00162]
[1725627978368,2.47699028,56864.0,56863.0,0.00162]
[1725627978589,2.48699028,56864.0,56863.0,0.00262]
[1725627979267,2.67255054,56864.0,56863.0,0.00262]
[1725627979487,2.72967372,56864.0,56863.0,0.00262]
[1725627980001,2.74067372,56864.0,56863.0,0.00262]
[1725627980233,1.88200328,56858.0,56857.0,0.00164]
[1725627980498,1.88200328,56858.0,56857.0,1e-06]
[1725627980499,3.20627054,56858.0,56857.0,1e-06]
[1725627980742,3.71414672,56858.0,56857.0,1e-06]
[1725627981173,3.65802354,56858.0,56857.0,1e-06]
[1725627981393,3.62566254,56858.0,56857.0,1e-06]
[1725627981641,3.62566254,56858.0,56857.0,0.001001]
[1725627982336,2.50655628,56858.0,56857.0,0.001001]
[1725627982582,2.12280328,56858.0,56857.0,0.001001]
[1725627982806,2.47455628,56858.0,56857.0,0.001001]
[1725627983037,2.47455628,56858.0,56857.0,1e-06]
[1725627983523,2.47455628,56858.0,56857.0,0.001001]
[1725627983524,1.98400328,56858.0,56857.0,0.001001]
[1725627983746,1.98400328,56858.0,56857.0,0.002001]
[1725627983747,1.99800328,56858.0,56857.0,0.002001]
[1725627983968,2.15956354,56858.0,56857.0,0.001001]
[1725627984204,1.97000328,56858.0,56857.0,1e-06]
[1725627984431,1.87900328,56858.0,56857.0,0.001001]
[1725627984648,1.87900328,56858.0,56857.0,1e-06]
[1725627984891,1.87000328,56858.0,56857.0,1e-06]
[1725627985584,1.97000328,56858.0,56857.0,1e-06]
[1725627986035,0.979382,56858.0,56857.0,1e-06]
[1725627986285,1.78370328,56858.0,56857.0,1e-06]
[1725627987699,1.77770328,56858.0,56857.0,1e-06]
[1725627987960,1.78270328,56858.0,56857.0,0.004001]
[1725627988223,2.14445628,56858.0,56857.0,0.004001]
[1725627988465,2.88010928,56858.0,56857.0,1e-06]
[1725627988684,3.05566954,56858.0,56857.0,1e-06]
[1725627988917,3.42742254,56858.0,56857.0,1e-06]
[1725627989157,5.22079803,56858.0,56857.0,1e-06]
[1725627989424,3.42342254,56858.0,56857.0,1e-06]
[1725627989630,3.43042254,56858.0,56857.0,0.001001]
[1725627989848,3.07166954,56858.0,56857.0,0.002001]
[1725627990092,2.87610928,56858.0,56857.0,0.002001]
[1725627990318,2.50835628,56858.0,56857.0,0.003001]
[1725627990559,2.50135628,56858.0,56857.0,0.002001]
[1725627990809,2.68391654,56858.0,56857.0,0.003001]
[1725627991052,2.68391654,56858.0,56857.0,0.001001]
[1725627991322,2.67691654,56858.0,56857.0,1e-06]
[1725627991565,2.68691654,56858.0,56857.0,0.001001]
[1725627991786,3.13779272,56858.0,56857.0,0.001001]
[1725627992704,3.13779272,56858.0,56857.0,1e-06]
[1725627992705,3.63680572,56858.0,56857.0,1e-06]
[1725627992977,1.231548,56839.0,56838.0,0.001632]
[1725627993677,1.331548,56839.0,56838.0,0.001632]
[1725627994206,1.332548,56839.0,56838.0,0.014632]
[1725627994452,1.333548,56839.0,56838.0,0.023632]
[1725627995666,1.685419,56839.0,56838.0,0.023632]
[1725627996618,1.685419,56839.0,56838.0,0.001632]
[1725627996619,1.683419,56839.0,56838.0,0.001632]
[1725627997109,1.684419,56839.0,56838.0,0.009632]
[1725627997357,1.684419,56839.0,56838.0,0.008632]
[1725627997593,1.689419,56839.0,56838.0,0.001632]
[1725627998085,1.337548,56839.0,56838.0,0.001632]
[1725627998785,1.44251762,56839.0,56838.0,0.001632]
[1725627999086,1.81665262,56839.0,56838.0,0.001632]
[1725627999098,0.527926,56826.0,56825.0,0.1531056]
[1725627999323,0.527926,56826.0,56825.0,0.16333258]
[1725627999745,0.879877,56826.0,56825.0,0.16333258]
[1725627999965,1.2803194,56826.0,56825.0,0.1531056]
[1725628000691,1.2813194,56826.0,56825.0,0.17333258]
[1725628000905,1.2813194,56826.0,56825.0,0.1641056]
[1725628001153,0.9293684,56826.0,56825.0,0.17433258]
[1725628001401,0.102,56826.0,56825.0,0.35631058]
[1725628001642,0.101,56826.0,56825.0,0.17433258]
[1725628001888,0.980877,56826.0,56825.0,0.17433258]
[1725628002123,0.979877,56826.0,56825.0,0.16333258]
[1725628002617,0.980877,56826.0,56825.0,0.17433258]
[1725628002848,0.980877,56826.0,56825.0,0.17933258]
[1725628003071,0.980877,56826.0,56825.0,0.16833258]
[1725628003072,0.979877,56826.0,56825.0,0.16833258]
[1725628003307,0.101,56826.0,56825.0,0.17533258]
[1725628003556,0.102,56826.0,56825.0,0.18533258]
[1725628003788,0.629926,56826.0,56825.0,0.18533258]
[1725628004015,0.277975,56826.0,56825.0,0.18533258]
[1725628004237,0.629926,56826.0,56825.0,0.18533258]
[1725628004497,0.102,56826.0,56825.0,0.18533258]
[1725628004713,0.102,56826.0,56825.0,0.36131058]
[1725628004932,0.002,56826.0,56825.0,0.36131058]
[1725628005160,0.177975,56826.0,56825.0,0.18533258]
[1725628005430,0.277975,56826.0,56825.0,0.18533258]
[1725628005639,0.981877,56826.0,56825.0,0.03222698]
[1725628005860,1.333828,56826.0,56825.0,0.03222698]
[1725628006299,1.333828,56826.0,56825.0,0.022]
[1725628007253,1.332828,56826.0,56825.0,0.01]
[1725628007481,1.332828,56826.0,56820.0,0.00164]
[1725628007482,0.879955,56821.0,56820.0,0.00164]
[1725628007700,1.1803974,56821.0,56820.0,0.01192803]
[1725628007922,1.1803974,56821.0,56820.0,0.00164]
[1725628008158,1.2079813,56821.0,56820.0,0.00164]
[1725628008807,1.2079813,56821.0,56820.0,0.01192803]
[1725628009044,2.86595869,56821.0,56820.0,0.01192803]
[1725628009317,0.196019,56812.0,56811.0,0.0129489]
[1725628009572,1.4701374,56812.0,56811.0,0.0129489]
[1725628009802,1.8221754,56812.0,56811.0,0.0129489]
[1725628010045,1.85976719,56812.0,56811.0,0.0129489]
[1725628010304,0.95609119,56812.0,56811.0,0.0129489]
[1725628010566,1.30812919,56812.0,56811.0,0.0129489]
[1725628010811,1.66016719,56812.0,56811.0,0.0129489]
[1725628011044,2.02358391,56812.0,56811.0,0.0129489]
[1725628011283,2.68106431,56812.0,56811.0,0.0129489]
[1725628012232,2.91480777,56812.0,56811.0,0.0129489]
[1725628012455,2.90180777,56812.0,56811.0,0.0129489]
[1725628012661,2.85386431,56812.0,56811.0,0.0189489]
[1725628013365,3.65650177,56812.0,56811.0,0.0129489]
[1725628013584,3.65650177,56812.0,56806.0,0.00164]
[1725628013585,1.614252,56809.0,56806.0,0.00164]
[1725628013827,0.186034,56807.0,56806.0,0.00164]
[1725628014046,0.01,56800.0,56787.0,0.1484]
[1725628014366,1.8849734,56799.0,56787.0,0.1484]
[1725628014595,1.8849734,56799.0,56793.0,0.19814]
[1725628014596,1.6328554,56799.0,56793.0,0.19814]
[1725628014800,1.6328554,56799.0,56793.0,0.00164]
[1725628016072,1.6328554,56799.0,56798.0,0.00664]
[1725628016279,1.9849734,56799.0,56798.0,0.00664]
[1725628016497,1.6328554,56799.0,56798.0,0.00764]
[1725628016710,0.9286194,56799.0,56798.0,0.00664]
[1725628016933,1.2807374,56799.0,56798.0,0.00664]
[1725628017166,1.68415295,56799.0,56798.0,0.00664]
[1725628017374,1.68315295,56799.0,56798.0,0.00664]
[1725628017792,1.69015295,56799.0,56798.0,0.00764]
[1725628017996,1.69015295,56799.0,56798.0,0.00264]
[1725628018459,1.68415295,56799.0,56798.0,0.00164]
[1725628018889,2.03527095,56799.0,56798.0,0.00164]
[1725628019111,2.03527095,56799.0,56798.0,0.00464]
[1725628019340,2.23417095,56799.0,56798.0,0.00464]
[1725628019574,1.8317554,56799.0,56798.0,0.00464]
[1725628020004,2.1908734,56799.0,56798.0,0.00564]
[1725628020217,2.2208734,56799.0,56798.0,0.00564]
[1725628020438,2.39643366,56799.0,56798.0,0.00564]
[1725628020669,2.4825398,56799.0,56798.0,0.00464]
[1725628021096,2.4845398,56799.0,56798.0,0.00464]
[1725628021321,1.92686154,56799.0,56798.0,0.00464]
[1725628021537,1.42751914,56799.0,56798.0,0.36374]
[1725628022009,1.42751914,56799.0,56798.0,0.01790319]
[1725628022254,1.42751914,56799.0,56798.0,0.00464]
[1725628022693,1.42751914,56799.0,56798.0,0.00164]
[1725628022925,1.42551914,56799.0,56798.0,0.00164]
[1725628023147,1.42651914,56799.0,56798.0,0.00164]
[1725628023359,1.07340114,56799.0,56798.0,0.00164]
[1725628023620,1.07340114,56799.0,56798.0,0.00464]
[1725628023837,1.07540114,56799.0,56798.0,0.00464]
[1725628024062,1.07340114,56799.0,56798.0,0.00464]
[1725628024309,0.73968322,56799.0,56798.0,0.00464]
[1725628024600,1.09180122,56799.0,56798.0,0.00464]
[1725628024819,0.88166616,56799.0,56798.0,0.00464]
[1725628025267,0.88166616,56799.0,56798.0,0.00164]
[1725628025566,0.21150622,56799.0,56798.0,0.00164]
[1725628025803,0.11150622,56799.0,56798.0,1.589977]
[1725628026066,0.3004424,56815.0,56798.0,1.589977]
[1725628026067,0.176008,56816.0,56814.0,0.1553]
[1725628026277,0.52650515,56815.0,56809.0,0.3416]
[1725628026497,0.02759372,56811.0,56809.0,0.3416]
[1725628026937,0.02759372,56811.0,56810.0,0.176025]
[1725628027179,0.02759372,56811.0,56810.0,0.880125]
[1725628027641,0.02759372,56811.0,56810.0,0.176025]
[1725628027899,0.02859372,56811.0,56810.0,0.528075]
[1725628028110,0.02859372,56811.0,56810.0,1.232175]
[1725628028331,0.02859372,56811.0,56810.0,0.880125]
[1725628028758,0.02859372,56811.0,56810.0,1.082925]
[1725628028981,0.02859372,56811.0,56810.0,1.585275]
[1725628029218,0.000817,56826.0,56825.0,0.527935]
[1725628029451,0.000817,56826.0,56825.0,0.875635]
[1725628029984,0.000817,56826.0,56825.0,0.523678]
[1725628030450,0.000817,56826.0,56825.0,0.525678]
[1725628030658,0.001817,56826.0,56825.0,0.536678]
[1725628030873,0.000817,56826.0,56825.0,0.525678]
[1725628031355,0.000817,56826.0,56825.0,1.581549]
[1725628031832,0.000817,56826.0,56825.0,1.579549]
[1725628032079,0.000817,56826.0,56825.0,1.581183]
[1725628032541,0.001817,56826.0,56825.0,1.591183]
[1725628032769,0.001817,56826.0,56825.0,0.890269]
[1725628033014,0.001817,56826.0,56825.0,0.362334]
[1725628033263,0.001817,56826.0,56825.0,0.361334]
[1725628033499,0.528743,56826.0,56825.0,0.349334]
[1725628033720,0.178792,56826.0,56825.0,0.375334]
[1725628033949,0.530743,56826.0,56825.0,0.375334]
[1725628034169,0.178792,56826.0,56825.0,0.375334]
[1725628034419,0.982694,56826.0,56825.0,0.027634]
[1725628034661,0.630743,56826.0,56825.0,0.027634]
[1725628035160,0.629743,56826.0,56825.0,0.014634]
[1725628035404,0.630743,56826.0,56825.0,0.027634]
[1725628035630,0.629743,56826.0,56825.0,0.014634]
[1725628035842,0.628743,56826.0,56825.0,0.01440246]
[1725628036069,0.629743,56826.0,56825.0,0.02040246]
[1725628036287,0.278792,56826.0,56825.0,0.03140246]
[1725628036532,0.102817,56826.0,56825.0,0.21810246]
[1725628037004,0.278792,56826.0,56825.0,0.21810246]
[1725628037228,0.630743,56826.0,56825.0,0.21810246]
[1725628037913,0.630743,56826.0,56825.0,0.03140246]
[1725628038839,0.278792,56826.0,56825.0,0.03140246]
[1725628039092,0.102817,56826.0,56825.0,0.03140246]
[1725628039314,0.002817,56826.0,56825.0,0.03140246]
[1725628039863,0.178792,56826.0,56825.0,0.03140246]
[1725628040115,0.278792,56826.0,56825.0,0.03140246]
[1725628040341,0.102817,56826.0,56825.0,0.20738046]
[1725628040577,0.102817,56826.0,56825.0,1.26719446]
[1725628040578,0.002817,56826.0,56825.0,1.26719446]
[1725628040828,0.00255079,56826.0,56825.0,0.56328046]
[1725628041820,0.53047679,56826.0,56825.0,0.03140246]
[1725628042056,0.17852579,56826.0,56825.0,0.03140246]
[1725628042300,0.17852579,56826.0,56825.0,0.91129446]
[1725628042301,0.00255079,56826.0,56825.0,0.91129446]
[1725628042537,0.00255079,56826.0,56825.0,1.11149446]
[1725628042790,0.00255079,56826.0,56825.0,1.62255146]
[1725628043025,0.00255079,56826.0,56825.0,0.56668046]
[1725628043261,0.17852579,56826.0,56825.0,0.03140246]
[1725628043507,0.88242779,56826.0,56825.0,0.03140246]
[1725628045661,0.00255079,56826.0,56825.0,0.03140246]
[1725628045907,0.00255079,56826.0,56825.0,0.20738046]
[1725628046143,0.17852579,56826.0,56825.0,0.03140246]
[1725628046861,0.00255079,56826.0,56825.0,0.03140246]
[1725628047089,0.17852579,56826.0,56825.0,0.03140246]
[1725628047566,0.00255079,56826.0,56825.0,0.20738046]
[1725628047831,0.00255079,56826.0,56825.0,1.28241366]
[1725628048104,0.00255079,56826.0,56825.0,2.18483862]
[1725628048324,0.03,56840.0,56839.0,0.175935]
[1725628048550,0.03,56840.0,56839.0,0.883206]
[1725628048779,0.03,56840.0,56839.0,0.89571813]
[1725628049066,0.03,56840.0,56839.0,0.36791213]
[1725628049288,0.205932,56840.0,56839.0,0.36791213]
[1725628049527,0.205932,56840.0,56839.0,0.01251213]
[1725628049528,0.5063744,56840.0,56839.0,0.01251213]
[1725628049761,0.9582384,56840.0,56839.0,0.01251213]
[1725628050012,0.175954,56833.0,56830.0,0.1937]
[1725628050264,0.175951,56834.0,56830.0,0.1937]
[1725628050496,0.175949,56835.0,56831.0,0.18861859]
[1725628050719,0.175949,56835.0,56831.0,0.01265859]
[1725628050953,0.175949,56835.0,56832.0,0.175956]
[1725628051413,0.175946,56836.0,56833.0,0.18857497]
[1725628051653,0.7823064,56840.0,56839.0,0.009]
[1725628051654,0.657796,56840.0,56839.0,0.009]
[1725628051883,0.305932,56840.0,56839.0,0.009]
[1725628052127,0.175944,56837.0,56832.0,0.175955]
[1725628052366,0.481864,56840.0,56832.0,0.175956]
[1725628052367,0.351872,56839.0,56832.0,0.175956]
[1725628052613,0.175946,56836.0,56832.0,0.175956]
[1725628052879,0.175946,56836.0,56833.0,0.175952]
[1725628053090,0.001,56834.0,56833.0,0.175952]
[1725628053329,0.175946,56836.0,56832.0,0.009]
[1725628053553,0.1,56838.0,56834.0,0.175949]
[1725628053776,0.1,56838.0,56837.0,0.527824]
[1725628053998,0.351843,56844.0,56839.0,0.175935]
[1725628053999,0.08504258,56843.0,56839.0,0.175935]
[1725628054255,0.08504258,56843.0,56840.0,0.17593]
[1725628054476,0.6505424,56853.0,56841.0,0.3471]
[1725628054477,0.351786,56853.0,56841.0,0.3471]
[1725628054695,0.175895,56852.0,56845.0,0.351833]
[1725628054925,0.175885,56856.0,56848.0,0.35181]
[1725628055148,0.175886,56855.0,56851.0,0.175897]
[1725628055400,0.000817,56858.0,56854.0,0.175888]
[1725628055401,0.176694,56858.0,56854.0,0.175888]
[1725628055642,0.175892,56853.0,56852.0,0.17397421]
[1725628055873,0.175886,56855.0,56852.0,0.1617]
[1725628056114,0.175883,56856.0,56852.0,0.337594]
[1725628056338,0.352573,56858.0,56852.0,0.1617]
[1725628056339,0.000817,56858.0,56852.0,0.1617]
[1725628056611,0.000817,56858.0,56857.0,0.366379]
[1725628056846,0.000817,56858.0,56857.0,0.718138]
[1725628057067,0.000817,56858.0,56857.0,0.1905]
[1725628057750,0.000817,56858.0,56857.0,0.366379]
[1725628058222,0.000817,56858.0,56857.0,0.371379]
[1725628058441,0.000817,56858.0,56857.0,0.723138]
[1725628058669,0.000817,56858.0,56857.0,0.366379]
[1725628059137,0.000817,56858.0,56857.0,0.379379]
[1725628059589,0.000817,56858.0,56857.0,0.383379]
[1725628059812,0.000817,56858.0,56857.0,0.379379]
[1725628060058,0.000817,56858.0,56857.0,0.388379]